Cogmind - Beta 14 @@@ ROGUE MODE // 2024.12.16 @ 05:51:51 Player: MarKhan Result: Escaped! Performance ------------- Evolutions (9) 4500 Regions Visited (25) 5000 Robots Destroyed (291) 1455 Value Destroyed (17917) 17917 Prototype IDs (38) 760 Alien Tech Used (0) 0 Bonus (15412) 15412 TOTAL SCORE: 45044 Bonus ------- High Alert Combat Kills 4471 Follower Combat Kills 3431 Entered Garrisons 1600 Used RIF Installer 3500 Aligned with FarCom 300 Win 3000 Friendly Fire -890 Cogmind --------- Core Integrity 865/1600 Matter 202/300 Energy 763/900 System Corruption 51% Temperature Cool (12) Movement Walking (113) Location To Epsilon Eridani Parts ------- > --- POWER (2) -------- Micro Antimatter Reactor Quantum Reactor > --- PROPULSION (8) --- Myomer Leg Biometal Leg Biometal Leg Biometal Leg Biometal Leg Centrium Leg > --- UTILITY (9) ------ Advanced Heat Sink Experimental Cooling System Advanced Energy Well Advanced Phase Shifter Relay Coupler [Swarmer] (42) Relay Coupler [Brawler] (29) Relay Coupler [Sentry] (2) Relay Coupler [Specialist] (15) > --- WEAPON (6) ------- Quantum Rifle Enhanced Nova Cannon Enhanced Nova Cannon Advanced Remote Datajack Improved Plasma Cutter Enhanced Force Lance > --- INVENTORY (5) ---- YOLO Cannon Advanced Remote Datajack Peak State ------------ > --- POWER ------------ Quantum Reactor Light Quantum Reactor > --- PROPULSION ------- Advanced VSS Leg Biometal Leg Biometal Leg Biometal Leg Biometal Leg Biometal Leg Biometal Leg Biometal Leg > --- UTILITY ---------- Experimental Cooling System Cargo Storage Unit Advanced Phase Shifter Improved Core Shielding Relay Coupler [Sentry] Relay Coupler [Sentry] Relay Coupler [Specialist] Relay Coupler [Heavy] > --- WEAPON ----------- Phase Gun Quantum Rifle Quantum Rifle Enhanced Nova Cannon KE Penetrator Advanced Remote Datajack > --- INVENTORY -------- Particle Reactor Micro Antimatter Reactor Micro Antimatter Reactor Flexi-carbon Leg Improved VSS Leg Myomer Leg Myomer Leg Myomer Leg Compact Wheel Advanced Heat Sink Advanced Energy Well Matter Compressor Graphene Brace Advanced Shield Generator Relay Coupler [Swarmer] Relay Coupler [Brawler] Relay Coupler [Specialist] Relay Coupler [Proto] Relay Coupler [Proto] Relay Coupler [Proto] Relay Coupler [Proto] Relay Coupler [Proto] Relay Coupler [Proto] YOLO Cannon Advanced Remote Datajack Advanced Remote Datajack Improved Plasma Cutter Power Sword [Rating: 189] Favorites ----------- Power Light Quantum Reactor Engine Ion Engine Power Core Nuclear Core Reactor Light Quantum Reactor Propulsion Light Treads Treads Light Treads Leg Biometal Leg Wheel Compact Wheel Utility Advanced Heat Sink Device Advanced Heat Sink Storage Cargo Storage Unit Processor Advanced Targeting Computer Hackware Advanced Hacking Suite Protection Layered Medium Armor Plating Weapon Enhanced Nova Cannon Energy Gun PD Laser Energy Cannon Enhanced Nova Cannon Ballistic Gun Enhanced Autogun Launcher Rocket Launcher Special Weapon Remote Datajack Impact Weapon Maul Slashing Weapon Power Sword Piercing Weapon Enhanced Force Lance Build | -11 -10 -10 -10 -9 -8 -8 -8 -8 -8 -8 -8 -6 -6 -5 -5 -5 -5 -4 -4 -3 -3 -2 -1 -1 -1 ------- Run | Yrd Mat Min Exi Min Mat Gar Mat Sto Gar Rec Scr Fac Gar Fac Gar Fac Gar Fac Gar Res Gar Res Acc Gar Acc Slots Evolved 18 | . . . . . 4 . . . . . . 4 . 2 . . . 2 . 2 . 2 2 . . Power 1 | . . . . . . . . . . . . . . 1 . . . . . . . . . . . Propulsion 6 | . . . . . 4 . . . . . . . . . . . . . . . . . 2 . . Utility 7 | . . . . . . . . . . . . 3 . . . . . 2 . 2 . . . . . Weapon 4 | . . . . . . . . . . . . 1 . 1 . . . . . . . 2 . . . Parts Attached 544 | 7 26 4 2 . 42 33 6 16 37 2 1 32 68 9 38 2 22 13 10 2 81 2 5 39 45 Power 47 | 1 4 1 . . 4 . . 1 4 . . 1 1 1 6 . 2 . 1 . 10 1 1 4 4 Engine 16 | 1 4 1 . . 3 . . 1 2 . . 1 1 . 1 . . . . . 1 . . . . Core 5 | . . . . . 1 . . . 2 . . . . . 1 . 1 . . . . . . . . Reactor 26 | . . . . . . . . . . . . . . 1 4 . 1 . 1 . 9 1 1 4 4 Propulsion 117 | 2 3 . . . 13 6 2 5 5 . . 6 14 . 9 . . 1 . . 27 . . 10 14 Treads 76 | 2 3 . . . 11 6 2 5 5 . . 6 13 . 9 . . 1 . . 13 . . . . Leg 35 | . . . . . . . . . . . . . . . . . . . . . 13 . . 8 14 Wheel 6 | . . . . . 2 . . . . . . . 1 . . . . . . . 1 . . 2 . Hover . | . . . . . . . . . . . . . . . . . . . . . . . . . . Flight . | . . . . . . . . . . . . . . . . . . . . . . . . . . Utility 185 | 2 6 1 2 . 12 7 2 4 11 1 . 10 24 6 9 2 13 11 7 2 31 . 4 8 10 Device 88 | 1 2 1 1 . 7 . . . 1 . . 2 9 5 8 2 8 7 4 1 19 . 3 4 3 Storage 17 | 1 4 . 1 . . . . . . . . 1 3 1 1 . 1 . . . 1 . 1 1 1 Processor 7 | . . . . . . 1 1 . 1 . . 1 . . . . . . . . 3 . . . . Hackware 48 | . . . . . . 4 . 3 8 1 . 4 5 . . . 3 2 3 1 7 . . 2 5 Protection 25 | . . . . . 5 2 1 1 1 . . 2 7 . . . 1 2 . . 1 . . 1 1 Artifact . | . . . . . . . . . . . . . . . . . . . . . . . . . . Weapon 195 | 2 13 2 . . 13 20 2 6 17 1 1 15 29 2 14 . 7 1 2 . 13 1 . 17 17 Energy Gun 22 | 1 3 . . . 1 1 . . . . . . 4 . 1 . 1 . . . 1 1 . 2 6 Energy Cannon 36 | . . . . . . . . 1 . . . . 8 2 12 . 5 . 1 . 3 . . . 4 Ballistic Gun 71 | 1 9 1 . . 9 8 1 3 7 . 1 9 13 . . . . . . . . . . 7 2 Ballistic Cannon . | . . . . . . . . . . . . . . . . . . . . . . . . . . Launcher 6 | . . . . . 2 2 . . 1 . . 1 . . . . . . . . . . . . . Special Weapon 39 | . 1 . . . . 3 1 2 6 1 . 5 3 . 1 . 1 1 1 . 5 . . 4 4 Impact Weapon 12 | . . 1 . . 1 6 . . 3 . . . 1 . . . . . . . . . . . . Slashing Weapon 8 | . . . . . . . . . . . . . . . . . . . . . 4 . . 4 . Piercing Weapon 1 | . . . . . . . . . . . . . . . . . . . . . . . . . 1 Special Melee Weapon . | . . . . . . . . . . . . . . . . . . . . . . . . . . Unidentified Prototypes 9 | . . . . . 2 . . 1 . . . . 1 . . . . 1 . . 4 . . . . Corrupted Parts 2 | . . . . . . . . . . . . . . . . . . . . . . . . 1 1 System Corruption 10 | . . . . . . . . . . . . . . . . . . . . . . . . 3 7 Parts Lost 103 | . 1 . . . 7 1 1 . 2 . . 1 10 . 14 . 2 1 1 . 22 . . 16 24 Power 13 | . . . . . 1 . . . 1 . . . . . 2 . . . . . 4 . . 2 3 Propulsion 37 | . . . . . 4 1 . . 1 . . . 5 . 5 . . 1 . . 10 . . 3 7 Utility 21 | . . . . . 1 . 1 . . . . . 2 . 1 . 1 . . . 5 . . 3 7 Weapon 32 | . 1 . . . 1 . . . . . . 1 3 . 6 . 1 . 1 . 3 . . 8 7 Highest Loss Streak 10 | . 1 . . . 3 1 1 . 1 . . 1 10 . 8 . 2 1 1 . 10 . . 7 9 To Critical Strikes 1 | . . . . . . . . . . . . . . . . . . . 1 . . . . . . Average Slot Usage (%) 85 | . 100 100 100 100 82 100 100 99 99 98 95 92 82 63 71 75 69 75 76 80 71 65 60 71 91 Engine 4 | . 14 14 14 14 7 . . 7 2 9 9 6 6 5 1 . . . . . . . . . . Core 1 | . . . . . . 9 9 1 6 . . . . . 1 . . 5 4 . . . . . . Reactor 3 | . . . . . . . . . . . . . . 5 7 11 10 5 5 9 6 8 8 7 7 Treads 28 | . 28 28 28 28 36 54 54 54 54 54 54 39 34 17 16 17 17 15 15 14 11 13 12 3 . Leg 2 | . . . . . . . . . . . . . . . . . . . . . 4 . . 13 31 Device 8 | . 14 14 14 14 6 . . . 1 . . . 6 11 10 10 8 10 11 14 15 17 16 14 11 Storage 7 | . 14 14 14 14 9 9 9 9 9 9 9 6 6 5 5 5 5 5 5 4 4 4 4 4 3 Hackware 6 | . . . . . . 5 6 7 4 2 9 10 4 5 5 5 6 8 13 19 14 13 12 12 16 Protection 1 | . . . . . 2 2 2 . 1 . . 1 4 . . . . 5 . . . . . . . Energy Gun 2 | . 9 . . . . . . . . . . . . 5 1 . 2 . . . 1 7 8 1 7 Energy Cannon 4 | . . . . . . . . . . . . . 1 4 16 23 12 18 15 14 2 . . . 4 Ballistic Gun 9 | . 18 28 28 28 17 13 18 11 15 14 5 16 14 . . . . . . . . . . 7 2 Special Weapon 1 | . . . . . . 2 . 5 1 2 9 2 . . . . 1 . 3 4 2 . . 2 3 Peak Build Rating 189 | 7 12 12 13 13 31 36 36 41 44 40 40 68 108 123 139 139 145 151 147 153 153 151 153 153 189 Average Rating 76 | 5 9 12 12 13 21 32 35 39 39 39 38 60 72 120 120 138 137 145 144 152 129 149 151 132 166 On Entrance 78 | . 7 12 12 13 13 28 36 34 40 40 36 40 68 108 120 139 139 142 141 147 153 136 151 153 144 Naked Turns . | . . . . . . . . . . . . . . . . . . . . . . . . . . Heaviest Build 356 | 15 52 52 92 92 103 98 101 105 105 97 96 228 251 252 261 218 356 241 223 224 224 200 200 214 222 Greatest Support 230 | 40 40 40 40 40 129 133 133 137 137 134 134 158 210 180 230 230 230 230 225 225 225 220 220 220 223 Greatest Overweight (x) 53 | . 1 1 2 2 5 . . . . . . 1 9 1 1 . 1 1 . . 53 . . 13 1 Average Overweight (x) . | . . 1 1 2 . . . . . . . 1 . . . . . . . . . . . 2 . Largest Inventory Capacity 35 | 8 20 20 25 25 25 25 25 25 25 25 25 35 35 35 35 30 30 30 30 30 30 30 30 30 30 Average Capacity 27 | 7 17 20 21 25 25 25 25 25 25 25 25 34 33 33 31 30 30 30 30 30 30 30 30 30 21 Most Carried 35 | 4 20 20 21 22 25 25 25 25 25 25 25 35 35 32 35 30 30 30 30 30 30 29 30 30 30 Average Carried 26 | 2 15 20 20 21 24 24 24 24 24 24 24 32 32 30 30 30 29 29 29 28 29 28 29 29 19 Final Capacity 35 | 8 20 20 25 25 25 25 25 25 25 25 25 35 30 35 30 30 30 30 30 30 30 30 30 30 5 Final Carried 35 | 4 20 20 21 22 25 25 25 25 25 25 25 35 30 32 30 30 30 29 30 30 30 29 30 30 3 Class Distribution -------------------- 19% | Mutant 13% | Scavenger-Mutant 13% | Botlord-Skirmisher 12% | Bothacker-Skirmisher 11% | Bothacker-Mutant 10% | Hauler-Skirmisher 3% | Botlord-Mutant 3% | Hauler-Tank 3% | Botlord-Executioner Dominant Class ---------------- Mutant | -10/Materials Mutant | -10/Mines Mutant | -10/Exiles Mutant | -9/Mines Scavenger-Mutant | -8/Materials Mutant | -8/Garrison Bothacker-Mutant | -8/Materials Scavenger-Mutant | -8/Storage Scavenger-Mutant | -8/Garrison Bothacker-Mutant | -8/Recycling Bothacker-Mutant | -8/Scraptown Hauler-Skirmisher | -6/Factory Hauler-Tank | -6/Garrison Hauler-Skirmisher | -5/Factory Bothacker-Skirmisher | -5/Garrison Bothacker-Skirmisher | -5/Factory Bothacker-Skirmisher | -5/Garrison Botlord-Skirmisher | -4/Factory Botlord-Skirmisher | -4/Garrison Botlord-Skirmisher | -3/Research Botlord-Skirmisher | -3/Garrison Botlord-Executioner | -2/Research Botlord-Executioner | -1/Access Botlord-Mutant | -1/Garrison Botlord-Executioner | -1/Access Resources | -11 -10 -10 -10 -9 -8 -8 -8 -8 -8 -8 -8 -6 -6 -5 -5 -5 -5 -4 -4 -3 -3 -2 -1 -1 -1 ----------- Run | Yrd Mat Min Exi Min Mat Gar Mat Sto Gar Rec Scr Fac Gar Fac Gar Fac Gar Fac Gar Res Gar Res Acc Gar Acc Matter Collected 12457 | 299 635 59 30 9 1373 823 127 388 1041 158 75 847 2649 70 551 35 283 313 146 . 881 . . 712 953 Remotely 1385 | . . . . . 596 . . . . . . 41 748 . . . . . . . . . . . . Salvage Created 17265 | 137 962 . . . 1819 592 96 194 409 . . 948 1726 903 2014 283 1672 760 279 . 2215 88 . 817 1351 Parts 796 | 10 69 . . . 109 41 3 16 28 . . 72 57 47 61 8 76 15 16 . 78 1 . 34 55 Haulers Intercepted 11 | . 2 . . . 4 . . 2 . . . 1 . 1 . . . 1 . . . . . . . Recyclers Shooed 12 | . 3 . . . 1 . . . . . . 3 . 2 . 1 . . . . . . . . 2 Parts Field Recycled . | . . . . . . . . . . . . . . . . . . . . . . . . . . Retrieved Matter . | . . . . . . . . . . . . . . . . . . . . . . . . . . Parts Self-Destructed . | . . . . . . . . . . . . . . . . . . . . . . . . . . Prevented . | . . . . . . . . . . . . . . . . . . . . . . . . . . Kills | -11 -10 -10 -10 -9 -8 -8 -8 -8 -8 -8 -8 -6 -6 -5 -5 -5 -5 -4 -4 -3 -3 -2 -1 -1 -1 ------- Run | Yrd Mat Min Exi Min Mat Gar Mat Sto Gar Rec Scr Fac Gar Fac Gar Fac Gar Fac Gar Res Gar Res Acc Gar Acc Combat Hostiles Destroyed 215 | . 15 . . . 29 16 1 4 10 . . 14 13 11 25 3 20 5 4 . 18 1 . 11 15 Melee 11 | . . . . . . . . . 1 . . . . . . . 2 . . . 4 . . 4 . Guns 120 | . 15 . . . 19 13 1 4 7 . . 10 12 9 4 . 8 . . . 3 1 . 7 7 Cannons 53 | . . . . . . . . . . . . . 1 2 18 2 10 4 3 . 8 . . . 5 AOE 21 | . . . . . 10 3 . . 2 . . 4 . . . . . . . . 1 . . . 1 Classes Destroyed 19 | 2 6 . . . 4 2 1 . 1 . . . . . . . . . . . 2 . . . 1 Worker 18 | . . . . . 7 . . . . . . 9 . . . . . . . . . . . . 2 Builder 13 | . 2 . . . 3 . . . . . . 1 . 6 . . . . . . . . . . 1 Tunneler 7 | 3 4 . . . . . . . . . . . . . . . . . . . . . . . . Hauler 11 | . 2 . . . 4 . . 2 . . . 1 . 1 . . . 1 . . . . . . . Recycler 13 | 1 2 . . . 5 . . . . . . 1 . . . . . 2 . . . . . . 2 Operator 2 | . 1 . . . 1 . . . . . . . . . . . . . . . . . . . . Watcher 7 | . 3 . . . 1 . 1 . . . . . . 1 1 . . . . . . . . . . Swarmer 40 | . 5 . . . 6 6 . 3 4 . . 6 . . . . 10 . . . . . . . . Cutter 2 | . . . . . . . . . . . . . . . . . . . . . 2 . . . . Saboteur 1 | . . . . . . . . . . . . . . . . . . . . . . . . . 1 Grunt 72 | . 10 . . . 16 3 . . 5 . . 1 5 8 6 2 6 4 . . 4 . . . 2 Brawler 4 | . . . . . . . 1 . . . . . 1 . 1 1 . . . . . . . . . Duelist 7 | . . . . . 1 1 . . . . . . . . 1 1 1 1 . . 1 . . . . Sentry 21 | . . . . . 4 2 . 1 . . . . 3 . 6 . 1 . 2 . 1 1 . . . Specialist 6 | . . . . . . . . . 1 . . 2 . . 3 . . . . . . . . . . Hunter 25 | . . . . . 2 . . . . . . 2 2 3 1 . 1 . . . 4 . . 6 4 Programmer 30 | . . . . . . 3 . . 1 . . 3 . . 4 . 2 . 2 . 2 . . 5 8 Q-Series 2 | . . . . . . . . . . . . . . . . . . . . . 2 . . . . Behemoth 10 | . . . . . . 1 . . . . . . 3 . 4 . . . . . 2 . . . . Best Kill Streak 11 | 2 3 . . . 11 3 1 4 4 . . 5 3 4 3 3 4 4 2 . 4 1 . 4 9 Combat Bots Only 8 | . 3 . . . 8 3 1 4 4 . . 4 3 3 3 3 4 4 2 . 4 1 . 4 7 Max Kills in Single Turn 4 | 1 1 . . . 3 3 1 1 2 . . 4 2 1 1 2 1 1 1 . 1 1 . 1 4 Gunslinging 1 | . . . . . . 1 . . . . . 1 1 . . . . . . . . . . . . Exploded 4 | . . . . . 3 3 . . 2 . . 4 . . . . . . . . 1 . . . 1 Melee 1 | . . . . . . . . . 1 . . . . . . . 1 . . . 1 . . 1 . Uniques/NPCs Destroyed . | . . . . . . . . . . . . . . . . . . . . . . . . . . Combat | -11 -10 -10 -10 -9 -8 -8 -8 -8 -8 -8 -8 -6 -6 -5 -5 -5 -5 -4 -4 -3 -3 -2 -1 -1 -1 -------- Run | Yrd Mat Min Exi Min Mat Gar Mat Sto Gar Rec Scr Fac Gar Fac Gar Fac Gar Fac Gar Res Gar Res Acc Gar Acc Hostile Shots Fired 2004 | . 75 . . . 165 75 3 22 92 4 . 125 153 90 305 9 120 62 34 4 226 8 . 215 217 Missed 551 | . 21 . . . 40 17 1 7 24 1 . 30 48 21 59 . 28 17 9 1 62 3 . 59 103 Damage Taken 29456 | . 617 . . . 1763 883 25 230 986 46 . 1571 2405 1360 4673 177 1740 975 575 83 4411 140 . 3691 3105 Core 3005 | . 117 . . . 179 43 . 47 130 . . 196 120 91 496 . 170 69 22 . 590 . . 489 246 Absorbed by Shields 488 | . . . . . . . . . 131 . . . 79 . . . . . . . 278 . . . . Reduced by Siege Mode 518 | . . . . . . . . . . . . . . . 290 . . . . . 228 . . . . Redirected to Shielding 6 | . . . . . . . . . . . . . . . . . . . . . . . . . 6 Ignored by Resistances 6 | . . . . . . . . 6 . . . . . . . . . . . . . . . . . Regen/Repaired (Parts) 1075 | . 209 . . . 61 . 161 116 . . 528 . . . . . . . . . . . . . . Core Remaining (%) 62 | 100 . . . 53 . . . . . . 27 . 62 . . . 24 . 92 . 54 100 . . 54 Volleys Fired 1102 | 11 96 . . . 119 67 9 31 80 3 . 66 118 32 117 10 92 38 35 2 57 . . 32 87 Largest 5 | 2 2 . . . 2 2 2 2 2 1 . 3 3 1 4 4 4 3 3 1 3 . . 4 5 Hottest 480 | 70 100 . . . 61 80 50 50 58 5 . 85 243 113 435 435 480 360 360 7 360 . . 168 429 Shots Fired 2178 | 22 191 1 . 1 234 118 17 47 131 4 . 156 231 79 233 22 133 66 62 2 115 9 . 98 206 Gun 1321 | 22 190 1 . 1 223 104 16 31 110 1 . 143 135 47 35 . 26 . . . 10 9 . 94 123 Cannon 665 | . . . . . . . . . . . . . 84 32 197 22 88 50 59 . 87 . . . 46 Launcher 20 | . . . . . 11 6 . . 2 . . 1 . . . . . . . . . . . . . Special 172 | . 1 . . . . 8 1 16 19 3 . 12 12 . 1 . 19 16 3 2 18 . . 4 37 Kinetic 960 | 11 103 1 . 1 223 96 16 31 110 1 . 143 135 . . . . . . . . . . 65 24 Thermal 995 | 11 88 . . . . 8 . . . . . . 84 79 232 22 114 50 59 . 97 9 . 24 118 Explosive 20 | . . . . . 11 6 . . 2 . . 1 . . . . . . . . . . . . . Electromagnetic 32 | . . . . . . . . . . . . . . . . . . . . . . . . 5 27 Robot Hit Streak 29 | 5 6 . . 1 13 9 6 7 12 2 . 19 29 9 24 8 25 13 10 1 16 3 . 6 13 Robot Miss Streak 12 | 2 5 2 . 1 5 4 2 3 3 1 . 5 5 7 7 2 9 2 2 1 3 4 . 12 7 Penetration Max 1 | . . . . . 1 . . . . . . 1 1 . . . . . . . . . . . 1 Secondary Targets 10 | . 1 . . . . 1 . 1 1 . . 2 3 . . . . . . . . . . 1 . Max Gunslinging Chain 1 | . 1 . . . . 1 . 1 1 . . 1 1 . . . . . . . . . . 1 . Autonomous 168 | . . . . . . . . . . . . . . 53 40 . 26 . . . 10 13 . 26 . Shots Hit Robots 1456 | 14 112 . . 1 148 69 12 26 75 2 . 112 182 57 157 15 90 47 27 1 122 7 . 65 115 Core Hits 591 | 5 48 . . . 93 28 4 7 19 . . 46 86 31 55 6 41 13 6 . 37 3 . 26 37 Critical Kills 13 | . . . . . . . . . . . . . 2 . 4 1 2 . 1 . 1 . . 1 1 Critical Parts Destroyed 7 | . . . . . 1 1 . . 1 . . 1 2 . . . . . . . . . . . 1 Critical Strikes 30 | 2 5 . . . 1 1 . . 1 . . 1 5 . 4 1 2 . 1 . 1 . . 3 2 Burn 7 | 2 5 . . . . . . . . . . . . . . . . . . . . . . . . Meltdown 12 | . . . . . . . . . . . . . 2 . 4 1 2 . 1 . 1 . . . 1 Destroy 9 | . . . . . 1 1 . . 1 . . 1 3 . . . . . . . . . . 1 1 Sever 2 | . . . . . . . . . . . . . . . . . . . . . . . . 2 . Melee Attacks 116 | . . 2 . . 3 16 . . 7 . . . 2 . . . . . . . 52 . . 30 4 Impact 30 | . . 2 . . 3 16 . . 7 . . . 2 . . . . . . . . . . . . Slashing 82 | . . . . . . . . . . . . . . . . . . . . . 52 . . 30 . Piercing 4 | . . . . . . . . . . . . . . . . . . . . . . . . . 4 Sneak Attacks 1 | . . . . . . . . . . . . . . . . . . . . . . . . 1 . Combat Hostiles 1 | . . . . . . . . . . . . . . . . . . . . . . . . 1 . Follow-up Attacks 3 | . . . . . . . . . . . . . . . . . . . . . 3 . . . . Damage Inflicted 42762 | 178 1371 . . 13 3532 1324 199 285 1377 . . 2316 4526 2745 6413 630 3209 1443 937 . 5951 306 . 2014 3993 Guns 19269 | 178 1371 . . 12 2472 1153 199 285 1051 . . 2098 2179 1812 1452 . 880 . . . 366 306 . 1290 2165 Cannons 17480 | . . . . . . . . . . . . . 2347 933 4961 630 2278 1420 937 . 2683 . . . 1291 Explosions 2179 | . . . . . 1058 160 . . 208 . . 218 . . . . . . . . . . . . 535 Melee 3695 | . . . . . . . . . 80 . . . . . . . . . . . 2902 . . 713 . Ramming 139 | . . . . 1 2 11 . . 38 . . . . . . . 51 23 . . . . . 11 2 Kinetic 11196 | 63 739 . . 12 2472 992 199 285 1051 . . 2098 2179 . . . . . . . . . . 676 430 Thermal 25054 | 115 632 . . . 23 161 . . . . . . 2347 2745 6413 630 3158 1420 937 . 3049 306 . 496 2622 Explosive 1862 | . . . . . 945 160 . . 208 . . 218 . . . . . . . . . . . . 331 Electromagnetic 816 | . . . . . 90 . . . . . . . . . . . . . . . . . . 118 608 Impact 80 | . . . . . . . . . 80 . . . . . . . . . . . . . . . . Slashing 3615 | . . . . . . . . . . . . . . . . . . . . . 2902 . . 713 . Piercing . | . . . . . . . . . . . . . . . . . . . . . . . . . . Highest Corruption 51 | . 2 2 2 2 . 1 6 6 7 7 . 2 2 . 3 3 5 2 3 . 4 . . 27 51 Average Corruption 5 | . 2 2 2 2 . 1 2 6 6 7 . 1 2 . 2 3 3 1 2 . 3 . . 16 35 Corruption Purged . | . . . . . . . . . . . . . . . . . . . . . . . . . . Corruption Blocked . | . . . . . . . . . . . . . . . . . . . . . . . . . . Effects 428 | . 30 5 10 3 . 9 5 15 59 19 . 3 37 . 60 4 24 2 8 . 12 . . 49 74 Message Errors 86 | . 8 . 2 . . 1 . 2 13 4 . 2 8 . 16 1 7 . . . 4 . . 6 12 Matter Fused 104 | . 8 1 . 1 . 1 2 6 15 3 . . 12 . 14 1 4 . 2 . 3 . . 14 17 Heat Flow Errors 49 | . 4 1 3 . . 3 . 1 5 3 . . . . 8 1 5 1 . . . . . 6 8 Energy Discharges 58 | . 1 1 5 . . 1 . 1 10 3 . . 5 . 6 1 4 . . . 2 . . 10 8 Parts Rejected 3 | . . . . . . . . . 1 . . . 1 . 1 . . . . . . . . . . Parts Fused 3 | . . . . . . 1 . . . . . . . . . . . . . . . . . . 2 Data Loss (minor) 49 | . 5 1 . . . 1 1 1 7 3 . 1 3 . 6 . 4 . 3 . 1 . . 6 6 Data Loss (major) 27 | . 3 . . 1 . . 1 3 4 2 . . 4 . 4 . . 1 . . . . . 4 . Misfires 16 | . 1 1 . 1 . 1 . 1 . 1 . . 2 . 2 . . . 3 . . . . 2 1 Alerts 9 | . . . . . . . 1 . 2 . . . 2 . 1 . . . . . 2 . . . 1 Misdirections 3 | . . . . . . . . . . . . . . . . . . . . . . . . . 3 Weapon Failures 21 | . . . . . . . . . 2 . . . . . 2 . . . . . . . . 1 16 Overload Shots . | . . . . . . . . . . . . . . . . . . . . . . . . . . Overflow Damage 735 | . . . . . 31 9 . . 60 . . . 13 27 24 19 67 24 15 . 291 . . 78 77 Projectiles 268 | . . . . . . . . . . . . . 13 27 24 19 63 24 15 . 30 . . . 53 Explosions 70 | . . . . . 31 9 . . 6 . . . . . . . . . . . . . . . 24 Melee 397 | . . . . . . . . . 54 . . . . . . . 4 . . . 261 . . 78 . Knockbacks 3 | . . . . . . . . . 1 . . . . . . . 1 1 . . . . . . . Impact 3 | . . . . . . . . . 1 . . . . . . . 1 1 . . . . . . . Kinetic . | . . . . . . . . . . . . . . . . . . . . . . . . . . Secondary . | . . . . . . . . . . . . . . . . . . . . . . . . . . Self-Inflicted Damage 146 | . . . . . 95 . . . 25 . . . . . . . . . . . . . . . 26 Shots 6 | . . . . . 4 . . . 1 . . . . . . . . . . . . . . . 1 Rammed 7 | . . . . 1 . 2 . . 1 . . . . . . . 1 1 . . . . . 1 . Targets Rammed 11 | . . . . 1 1 2 . . 2 . . . . . . . 2 1 . . . . . 1 1 Kicked 1 | . . . . . . . . . . . . . . . . . . . . . . . . . 1 Crushed 3 | . . . . . 1 . . . 1 . . . . . . . 1 . . . . . . . . Highest Temperature 697 | 45 264 225 221 . 87 284 12 208 250 261 . 123 235 468 697 529 426 318 274 . 460 . . 21 449 Average Temperature 107 | 17 39 118 84 . 18 79 5 31 57 96 . 41 77 246 217 245 173 135 142 . 162 . . 18 150 Received Heat Transfer 5134 | . 270 . . . 720 192 . 72 357 36 . 117 497 363 1365 75 306 330 99 9 236 18 . 9 63 Effects 33 | . . . . . . . . . . . . . . 3 8 3 9 1 . . 2 . . . 7 Shutdowns 6 | . . . . . . . . . . . . . . . . . 3 . . . . . . . 3 Energy Bleed 5 | . . . . . . . . . . . . . . . 1 . 1 1 . . 1 . . . 1 Interference 15 | . . . . . . . . . . . . . . 3 3 1 5 . . . . . . . 3 Matter Decay 2 | . . . . . . . . . . . . . . . 2 . . . . . . . . . . Short Circuit 1 | . . . . . . . . . . . . . . . . . . . . . 1 . . . . Damage (minor) 2 | . . . . . . . . . . . . . . . 1 1 . . . . . . . . . Damage (major) 1 | . . . . . . . . . . . . . . . . 1 . . . . . . . . . Damage (core) 1 | . . . . . . . . . . . . . . . 1 . . . . . . . . . . Siege Activations 7 | . . . . . . . . . . . . . . . 4 . . 1 . . 2 . . . . Total Turns 161 | . . . . . . . . . . . . . . . 87 . . 11 . . 63 . . . . Longest Duration 45 | . . . . . . . . . . . . . . . 31 . . 11 . . 45 . . . . Robots Corrupted . | . . . . . . . . . . . . . . . . . . . . . . . . . . Combat Hostiles . | . . . . . . . . . . . . . . . . . . . . . . . . . . Parts Fried 2 | . . . . . . . . . . . . . . . . . 1 . . . . . . 1 . Impact Corruptions 3 | . . . . . . . . . 2 . . . . . . . 1 . . . . . . . . Robots Melted 16 | . 1 . . . . . . . . . . . 2 . 4 1 2 1 1 . 2 . . . 2 Combat Hostiles 10 | . . . . . . . . . . . . . 1 . 2 1 . 1 1 . 2 . . . 2 Parts Melted 58 | . 1 . . . . 1 . . . . . . 2 4 16 2 5 2 3 . 10 3 . 1 8 Heat Transferred 25355 | 481 2089 . . . 50 259 . . . . . . 2923 2513 5670 592 2810 1202 606 . 2834 275 . 424 2627 Parts Sabotaged . | . . . . . . . . . . . . . . . . . . . . . . . . . . Parts Stolen . | . . . . . . . . . . . . . . . . . . . . . . . . . . Parts Stripped . | . . . . . . . . . . . . . . . . . . . . . . . . . . Power Chain Reactions 2 | . . . . . 1 . . . . . . . . . . . . . . . . . . . 1 Alert | -11 -10 -10 -10 -9 -8 -8 -8 -8 -8 -8 -8 -6 -6 -5 -5 -5 -5 -4 -4 -3 -3 -2 -1 -1 -1 ------- Run | Yrd Mat Min Exi Min Mat Gar Mat Sto Gar Rec Scr Fac Gar Fac Gar Fac Gar Fac Gar Res Gar Res Acc Gar Acc Peak Influence 3185 | 20 164 44 . . 644 1561 876 580 1370 740 . 326 1491 1037 3185 1772 2036 1143 1167 695 1337 848 508 644 1021 Initial 1671 | . 13 42 . . . 418 760 369 356 616 . . 228 782 725 1671 1240 1068 787 656 521 751 508 406 386 Average 779 | 7 73 43 . . 201 970 802 413 862 613 . 105 773 888 1798 1705 1593 1072 977 678 800 789 508 464 635 Maximum Alert Level 5 | . . . . . 2 4 3 2 4 3 . 1 4 3 5 5 5 4 4 2 4 3 2 2 3 Low Security (%) 22 | 100 100 100 . 100 64 . . . . . . 88 . . . . . . . . . . . . . Level 1 5 | . . . . . 6 . . 57 4 . . 11 11 . . . . . . . . . . 8 23 Level 2 24 | . . . . . 29 33 . 42 33 92 . . 35 . . . . . . 100 44 . 100 91 30 Level 3 23 | . . . . . . 23 100 . 33 7 . . 33 100 26 . . 78 77 . 40 100 . . 45 Level 4 14 | . . . . . . 43 . . 28 . . . 18 . 24 . 48 21 22 . 15 . . . . Level 5 9 | . . . . . . . . . . . . . . . 49 100 51 . . . . . . . . High Security . | . . . . . . . . . . . . . . . . . . . . . . . . . . Max Security . | . . . . . . . . . . . . . . . . . . . . . . . . . . Squads Dispatched 38 | . 4 . . . 6 . . 3 . . . 6 . 5 . 1 . 1 . . . . . . 12 Investigation 7 | . 4 . . . 2 . . . . . . . . 1 . . . . . . . . . . . Extermination 5 | . . . . . . . . . . . . 3 . 1 . . . . . . . . . . 1 Reinforcement 16 | . . . . . 4 . . 1 . . . 3 . 2 . . . . . . . . . . 6 Assault 2 | . . . . . . . . . . . . . . . . . . 1 . . . . . . 1 Garrison 8 | . . . . . . . . 2 . . . . . 1 . 1 . . . . . . . . 4 Intercept . | . . . . . . . . . . . . . . . . . . . . . . . . . . Searches Triggered . | . . . . . . . . . . . . . . . . . . . . . . . . . . Construction Impeded 5 | . . . . . 1 . . . . . . . . 1 . . . . . . . . . . 3 Haulers Reinforced 2 | . . . . . . . . . . . . . . . . . . . . . . . . . 2 Active Scanning Responses . | . . . . . . . . . . . . . . . . . . . . . . . . . . Cargo Convoy Interrupts . | . . . . . . . . . . . . . . . . . . . . . . . . . . Stealth | -11 -10 -10 -10 -9 -8 -8 -8 -8 -8 -8 -8 -6 -6 -5 -5 -5 -5 -4 -4 -3 -3 -2 -1 -1 -1 --------- Run | Yrd Mat Min Exi Min Mat Gar Mat Sto Gar Rec Scr Fac Gar Fac Gar Fac Gar Fac Gar Res Gar Res Acc Gar Acc Distress Signals 16 | . . . . . 4 . 3 2 . . . 2 . 1 1 . . . . . . . . . 3 Communications Jammed . | . . . . . . . . . . . . . . . . . . . . . . . . . . Distress Signals . | . . . . . . . . . . . . . . . . . . . . . . . . . . Times Spotted 470 | . 32 . . . 41 33 8 17 33 1 . 29 28 19 38 4 39 17 10 1 45 3 . 13 59 Peak Tracking Total 11 | . 3 . . . 6 4 5 7 5 1 . 5 6 5 5 2 11 6 3 1 8 2 . 6 8 Tactical Retreats 19 | . . . . . 1 1 . 1 7 . . 1 2 . 2 . . 1 . . 1 . . 1 1 Traps | -11 -10 -10 -10 -9 -8 -8 -8 -8 -8 -8 -8 -6 -6 -5 -5 -5 -5 -4 -4 -3 -3 -2 -1 -1 -1 ------- Run | Yrd Mat Min Exi Min Mat Gar Mat Sto Gar Rec Scr Fac Gar Fac Gar Fac Gar Fac Gar Res Gar Res Acc Gar Acc Traps Triggered 34 | . 1 . . . 1 3 . . 1 . . 1 7 . 5 . 1 2 3 . 3 . . 4 2 Indirectly 1 | . . . . . 1 . . . . . . . . . . . . . . . . . . . . Trap Hack Attempts . | . . . . . . . . . . . . . . . . . . . . . . . . . . Triggered . | . . . . . . . . . . . . . . . . . . . . . . . . . . Disarmed . | . . . . . . . . . . . . . . . . . . . . . . . . . . Reprogrammed . | . . . . . . . . . . . . . . . . . . . . . . . . . . Reused . | . . . . . . . . . . . . . . . . . . . . . . . . . . Traps Extracted . | . . . . . . . . . . . . . . . . . . . . . . . . . . Installed . | . . . . . . . . . . . . . . . . . . . . . . . . . . Triggered . | . . . . . . . . . . . . . . . . . . . . . . . . . . Machines | -11 -10 -10 -10 -9 -8 -8 -8 -8 -8 -8 -8 -6 -6 -5 -5 -5 -5 -4 -4 -3 -3 -2 -1 -1 -1 ---------- Run | Yrd Mat Min Exi Min Mat Gar Mat Sto Gar Rec Scr Fac Gar Fac Gar Fac Gar Fac Gar Res Gar Res Acc Gar Acc Machines Disabled 58 | . . . . . 4 11 . 1 7 . . . 5 2 6 . 4 1 2 . 6 . . 3 6 Max in Single Turn 2 | . . . . . 1 2 . . 1 . . . 1 1 1 . 1 1 1 . 1 . . 1 1 Garrison Relay 28 | . . . . . . 6 . . 6 . . . 2 . 4 . 3 . 2 . 3 . . 2 . Phase Generator 1 | . . . . . . 1 . . . . . . . . . . . . . . . . . . . Machines Repaired . | . . . . . . . . . . . . . . . . . . . . . . . . . . Machines Dismantled 4 | . . . . . . . . . . . . . . . . . . . . . 1 . . 1 2 Machines Sabotaged . | . . . . . . . . . . . . . . . . . . . . . . . . . . Overloaded Fab Kills . | . . . . . . . . . . . . . . . . . . . . . . . . . . Hacking | -11 -10 -10 -10 -9 -8 -8 -8 -8 -8 -8 -8 -6 -6 -5 -5 -5 -5 -4 -4 -3 -3 -2 -1 -1 -1 --------- Run | Yrd Mat Min Exi Min Mat Gar Mat Sto Gar Rec Scr Fac Gar Fac Gar Fac Gar Fac Gar Res Gar Res Acc Gar Acc Machines Accessed 64 | . 11 . 2 . 5 3 3 7 5 10 1 2 2 2 1 1 1 1 . 2 2 . 1 2 . Terminals 40 | . 8 . . . 3 3 1 5 5 5 . 1 2 . 1 . 1 . . 1 2 . . 2 . Fabricators 1 | . . . . . . . . . . . . . . 1 . . . . . . . . . . . Repair Stations 4 | . 1 . . . 1 . 1 1 . . . . . . . . . . . . . . . . . Recycling Units 6 | . 2 . . . . . . . . 4 . . . . . . . . . . . . . . . Scanalyzers 1 | . . . . . . . 1 . . . . . . . . . . . . . . . . . . Garrison Access 8 | . . . . . 1 . . 1 . . . 1 . 1 . 1 . 1 . 1 . . 1 . . Total Hacks 179 | . 40 . 2 . 16 9 29 13 12 23 4 3 5 3 4 1 2 1 . 3 6 . 1 2 . Successful 109 | . 25 . 2 . 9 2 21 10 4 15 4 1 2 3 1 1 1 1 . 2 2 . 1 2 . Failed 70 | . 15 . . . 7 7 8 3 8 8 . 2 3 . 3 . 1 . . 1 4 . . . . Catastrophic 17 | . 7 . . . . 1 . 1 1 . . . 1 . 1 . 1 . . 1 3 . . . . Database Lockouts . | . . . . . . . . . . . . . . . . . . . . . . . . . . Manual 76 | . 31 . 1 . 12 . 3 6 . 17 . . . . 2 . 2 . . . 2 . . . . Terminals 110 | . 29 . . . 13 9 4 8 12 12 . 2 5 . 4 . 2 . . 2 6 . . 2 . Fabricators 2 | . . . . . . . . . . . . . . 2 . . . . . . . . . . . Repair Stations 19 | . 7 . . . 2 . 6 4 . . . . . . . . . . . . . . . . . Recycling Units 10 | . 4 . . . . . . . . 6 . . . . . . . . . . . . . . . Scanalyzers 19 | . . . . . . . 19 . . . . . . . . . . . . . . . . . . Garrison Access 8 | . . . . . 1 . . 1 . . . 1 . 1 . 1 . 1 . 1 . . 1 . . Terminal Hacks 38 | . 7 . 2 . 1 2 1 3 4 5 4 . 2 . 1 . 1 . . 1 2 . . 2 . Record 11 | . 1 . 1 . . . . . . 5 4 . . . . . . . . . . . . . . Robot Schematic 1 | . . . . . . . . 1 . . . . . . . . . . . . . . . . . Robot Analysis 7 | . 5 . . . . . . 1 . . . . . . . . . . . 1 . . . . . Open Door 4 | . . . . . . 1 . 1 1 . . . . . . . . . . . . . . 1 . Emergency Access Points 5 | . . . . . . . . . 1 . . . 1 . 1 . . . . . 1 . . 1 . Terminal Index 2 | . 1 . . . 1 . . . . . . . . . . . . . . . . . . . . Alert Level 1 | . . . . . . . 1 . . . . . . . . . . . . . . . . . . Garrison Registry 3 | . . . . . . . . . 1 . . . 1 . . . 1 . . . . . . . . Patrol Navigation 3 | . . . . . . 1 . . 1 . . . . . . . . . . . 1 . . . . Derelict Proto ID Bank 1 | . . . 1 . . . . . . . . . . . . . . . . . . . . . . Fabricator Hacks 2 | . . . . . . . . . . . . . . 2 . . . . . . . . . . . Load Schematic 1 | . . . . . . . . . . . . . . 1 . . . . . . . . . . . Build 1 | . . . . . . . . . . . . . . 1 . . . . . . . . . . . Repair Station Hacks 16 | . 6 . . . 2 . 4 4 . . . . . . . . . . . . . . . . . Scan Component 8 | . 3 . . . 1 . 2 2 . . . . . . . . . . . . . . . . . Repair 8 | . 3 . . . 1 . 2 2 . . . . . . . . . . . . . . . . . Recycling Unit Hacks 2 | . 1 . . . . . . . . 1 . . . . . . . . . . . . . . . Report Inventory 1 | . . . . . . . . . . 1 . . . . . . . . . . . . . . . Retrieve Components 1 | . 1 . . . . . . . . . . . . . . . . . . . . . . . . Scanalyzer 16 | . . . . . . . 16 . . . . . . . . . . . . . . . . . . Insert Component 7 | . . . . . . . 7 . . . . . . . . . . . . . . . . . . Analyze 9 | . . . . . . . 9 . . . . . . . . . . . . . . . . . . Garrison Access Hacks 8 | . . . . . 1 . . 1 . . . 1 . 1 . 1 . 1 . 1 . . 1 . . Unlock Access 8 | . . . . . 1 . . 1 . . . 1 . 1 . 1 . 1 . 1 . . 1 . . Unauthorized Hacks 27 | . 11 . . . 5 . . 2 . 9 . . . . . . . . . . . . . . . Terminals 20 | . 8 . . . 5 . . 2 . 5 . . . . . . . . . . . . . . . Botnet 7 | . 2 . . . 3 . . 2 . . . . . . . . . . . . . . . . . Operators 1 | . 1 . . . . . . . . . . . . . . . . . . . . . . . . Skim 12 | . 5 . . . 2 . . . . 5 . . . . . . . . . . . . . . . Fabricators . | . . . . . . . . . . . . . . . . . . . . . . . . . . Repair Stations 1 | . 1 . . . . . . . . . . . . . . . . . . . . . . . . Patch 1 | . 1 . . . . . . . . . . . . . . . . . . . . . . . . Recycling Units 6 | . 2 . . . . . . . . 4 . . . . . . . . . . . . . . . Tunnel 6 | . 2 . . . . . . . . 4 . . . . . . . . . . . . . . . Scanalyzers . | . . . . . . . . . . . . . . . . . . . . . . . . . . Garrison Access . | . . . . . . . . . . . . . . . . . . . . . . . . . . Data Cores Recovered 1 | . . . . . . . . 1 . . . . . . . . . . . . . . . . . Used . | . . . . . . . . . . . . . . . . . . . . . . . . . . Hacking Detections 49 | . 10 . . . 4 2 3 5 5 6 . 2 2 2 1 . 1 . . 1 2 . 1 2 . Full Trace Events 11 | . 3 . . . 1 1 . . 2 . . . 1 1 1 . 1 . . . . . . . . Feedback Events 2 | . . . . . . . . . 1 . . . . . 1 . . . . . . . . . . Corruption 2 | . . . . . . . . . 1 . . . . . 1 . . . . . . . . . . Feedback Blocked . | . . . . . . . . . . . . . . . . . . . . . . . . . . Robot Schematics Acquired 1 | . . . . . . . . 1 . . . . . . . . . . . . . . . . . Robots Built . | . . . . . . . . . . . . . . . . . . . . . . . . . . Authchips . | . . . . . . . . . . . . . . . . . . . . . . . . . . Time . | . . . . . . . . . . . . . . . . . . . . . . . . . . Total Robot Build Rating . | . . . . . . . . . . . . . . . . . . . . . . . . . . Part Schematics Acquired 6 | . . . . . . . 6 . . . . . . . . . . . . . . . . . . Parts Built 1 | . . . . . . . . . . . . . . 1 . . . . . . . . . . . Authchips . | . . . . . . . . . . . . . . . . . . . . . . . . . . Time 51 | . . . . . . . . . . . . . . 51 . . . . . . . . . . . Total Part Build Rating 1 | . . . . . . . . . . . . . . 1 . . . . . . . . . . . Parts Repaired 8 | . 3 . . . 1 . 2 2 . . . . . . . . . . . . . . . . . Time 238 | . 78 . . . 26 . 58 76 . . . . . . . . . . . . . . . . . Parts Recycled . | . . . . . . . . . . . . . . . . . . . . . . . . . . Recycled Matter . | . . . . . . . . . . . . . . . . . . . . . . . . . . Retrieved Matter . | . . . . . . . . . . . . . . . . . . . . . . . . . . Retrieved Components 9 | . 9 . . . . . . . . . . . . . . . . . . . . . . . . Parts Scanalyzed 7 | . . . . . . . 7 . . . . . . . . . . . . . . . . . . Part Schematics Acquired 6 | . . . . . . . 6 . . . . . . . . . . . . . . . . . . Parts Damaged . | . . . . . . . . . . . . . . . . . . . . . . . . . . Bothacking | -11 -10 -10 -10 -9 -8 -8 -8 -8 -8 -8 -8 -6 -6 -5 -5 -5 -5 -4 -4 -3 -3 -2 -1 -1 -1 ------------ Run | Yrd Mat Min Exi Min Mat Gar Mat Sto Gar Rec Scr Fac Gar Fac Gar Fac Gar Fac Gar Res Gar Res Acc Gar Acc Used RIF Installer 7 | . . . . . . 1 . . 1 . . . . . 1 . 1 . 1 . 1 . . 1 . Hotswap 1 | . . . . . . . . . 1 . . . . . . . . . . . . . . . . Command Fork 1 | . . . . . . . . . . . . . . . 1 . . . . . . . . . . Zone Cloak 1 | . . . . . . . . . . . . . . . . . . . 1 . . . . . . Structural Interface 1 | . . . . . . . . . . . . . . . . . . . . . . . . 1 . Program Shield 1 | . . . . . . . . . . . . . . . . . 1 . . . . . . . . Autoassimilate 1 | . . . . . . . . . . . . . . . . . . . . . 1 . . . . Robots Hacked 98 | . . . . . . 7 1 7 11 1 . 9 7 . . . 13 5 2 1 14 . . 3 17 Non-combat 7 | . . . . . . . . . . . . 4 . . . . . . . . . . . . 3 Combat 91 | . . . . . . 7 1 7 11 1 . 5 7 . . . 13 5 2 1 14 . . 3 14 Autoassimilated 3 | . . . . . . . . . . . . . . . . . . . . . 2 . . . 1 Robot Hacks Applied 108 | . . . . . . 7 1 8 11 1 . 11 9 . . . 14 8 2 1 15 . . 3 17 parse_system 8 | . . . . . . 1 . . . . . . 1 . . . . 1 . . 3 . . 1 1 deconstruct_machine 1 | . . . . . . . . . . . . 1 . . . . . . . . . . . . . map_walls 1 | . . . . . . . . . . . . . . . . . . . . . . . . . 1 find_recycling 1 | . . . . . . . . . . . . 1 . . . . . . . . . . . . . map_route 3 | . . . . . . . . . . . . 2 . . . . . . . . . . . . 1 mark_security 1 | . . . . . . . . . . . . 1 . . . . . . . . . . . . . find_garrison 3 | . . . . . . . . 1 . . . 1 . . . . . 1 . . . . . . . link_fov 1 | . . . . . . . . . . . . . . . . . . . . . . . . . 1 spike_heat 2 | . . . . . . . . . 1 . . . . . . . . . . . 1 . . . . overload_power 1 | . . . . . . . . . . . . 1 . . . . . . . . . . . . . amplify_resonance 1 | . . . . . . . . . . . . . 1 . . . . . . . . . . . . reboot_system 4 | . . . . . . . . . . . . 1 1 . . . . 1 . . 1 . . . . overwrite_iff 29 | . . . . . . 4 . 2 . . . . 3 . . . 11 2 . . 4 . . 1 2 streamctrl_high 2 | . . . . . . . . . 1 . . . 1 . . . . . . . . . . . . formatsys_high 50 | . . . . . . 2 1 5 9 1 . 3 2 . . . 3 3 2 1 6 . . 1 11 Relay Couplers Released 122 | . . . . . . 23 . . 29 . . . 10 . 17 . 13 . 9 . 14 . . 7 . Machine Destruction 115 | . . . . . . 23 . . 25 . . . 10 . 17 . 13 . 6 . 14 . . 7 . Programmers 7 | . . . . . . . . . 4 . . . . . . . . . 3 . . . . . . Attached 46 | . . . . . . 4 . 3 8 1 . 4 4 . . . 3 1 3 1 7 . . 2 5 Fabnet Peak Effective % . | . . . . . . . . . . . . . . . . . . . . . . . . . . Robots Rewired 16 | . . . . . . . . . . . . . 3 . 12 . . . . . . . . . 1 Allies Hacked . | . . . . . . . . . . . . . . . . . . . . . . . . . . Hacks Repelled . | . . . . . . . . . . . . . . . . . . . . . . . . . . Allies | -11 -10 -10 -10 -9 -8 -8 -8 -8 -8 -8 -8 -6 -6 -5 -5 -5 -5 -4 -4 -3 -3 -2 -1 -1 -1 -------- Run | Yrd Mat Min Exi Min Mat Gar Mat Sto Gar Rec Scr Fac Gar Fac Gar Fac Gar Fac Gar Res Gar Res Acc Gar Acc Total Allies 111 | . . . . . . 8 1 7 11 1 . 3 10 . 12 . 13 5 2 1 16 . . 5 16 Largest Group 11 | . . . . . . 2 1 4 3 1 1 1 3 . 11 3 3 4 2 3 7 5 5 7 5 Highest-Rated Group 386 | . . . . . . 64 25 68 57 15 15 90 143 . 318 99 107 199 105 169 368 244 244 386 349 Highest-Rated Ally 178 | . . . . . . 39 25 29 25 15 15 90 116 . 85 43 49 58 56 64 64 56 56 80 178 Total Orders 4 | . . . . . . . . . 2 . . . . . 2 . . . . . . . . . . STAY 2 | . . . . . . . . . 1 . . . . . 1 . . . . . . . . . . FOLLOW 2 | . . . . . . . . . 1 . . . . . 1 . . . . . . . . . . Ally Attacks 581 | . . . . . . 37 6 56 36 . . 19 42 . 94 11 51 19 8 . 54 13 . 12 123 Total Damage 15924 | . . . . . . 616 167 905 550 . . 592 1817 . 2684 409 791 608 193 . 1707 349 . 333 4203 Kills 108 | . . . . . . 9 2 10 7 . . 5 9 . 19 2 6 3 4 . 5 2 . . 25 Allies Corrupted 1 | . . . . . . . . . . . . . . . . . . 1 . . . . . . . Allies Melted 5 | . . . . . . . . . . . . 1 . . 1 . 1 1 . . 1 . . . . Intel | -11 -10 -10 -10 -9 -8 -8 -8 -8 -8 -8 -8 -6 -6 -5 -5 -5 -5 -4 -4 -3 -3 -2 -1 -1 -1 ------- Run | Yrd Mat Min Exi Min Mat Gar Mat Sto Gar Rec Scr Fac Gar Fac Gar Fac Gar Fac Gar Res Gar Res Acc Gar Acc Robot Analysis Total 7 | . 5 . . . . . . 1 . . . . . . . . . . . 1 . . . . . Derelict Logs Recovered 1 | . . . . 1 . . . . . . . . . . . . . . . . . . . . . Drone Launches . | . . . . . . . . . . . . . . . . . . . . . . . . . . Drone Recoveries . | . . . . . . . . . . . . . . . . . . . . . . . . . . Exploration | -11 -10 -10 -10 -9 -8 -8 -8 -8 -8 -8 -8 -6 -6 -5 -5 -5 -5 -4 -4 -3 -3 -2 -1 -1 -1 ------------- Run | Yrd Mat Min Exi Min Mat Gar Mat Sto Gar Rec Scr Fac Gar Fac Gar Fac Gar Fac Gar Res Gar Res Acc Gar Acc Turns Passed 27612 | 131 2882 398 792 283 1750 1723 289 494 1878 643 1016 1130 2768 542 3235 138 1268 597 710 119 2122 72 188 1351 1093 Spaces Moved 12338 | 54 1139 154 299 88 596 902 136 252 1029 373 655 383 1057 192 1414 72 674 244 397 75 970 39 112 532 500 Core 3 | 2 . . . . . . . . . . . . . . . . . . . . 1 . . . . Treads 11312 | 52 1139 154 299 88 561 902 136 252 1029 373 655 383 1046 192 1414 72 674 244 397 75 827 39 112 197 . Legs 916 | . . . . . . . . . . . . . . . . . . . . . 140 . . 276 500 Wheels 107 | . . . . . 35 . . . . . . . 11 . . . . . . . 2 . . 59 . Hover . | . . . . . . . . . . . . . . . . . . . . . . . . . . Flight . | . . . . . . . . . . . . . . . . . . . . . . . . . . Fastest Speed 50 | 50 160 240 240 320 135 160 160 155 154 155 155 221 159 170 150 150 150 150 150 150 150 160 160 160 107 Average Speed 184 | 155 214 240 264 320 213 160 160 155 154 155 155 235 213 234 188 150 150 195 150 150 169 160 160 204 148 Slowest Speed 2700 | 160 240 240 320 320 320 160 160 160 155 155 155 244 250 250 250 150 233 233 150 150 2700 160 160 320 183 Overloaded Moves . | . . . . . . . . . . . . . . . . . . . . . . . . . . Propulsion Burnouts . | . . . . . . . . . . . . . . . . . . . . . . . . . . Robots Hopped . | . . . . . . . . . . . . . . . . . . . . . . . . . . Cave-ins Triggered 1 | . . . . . . . . . . . . . . . . . . . . . . . . 1 . Exploration Rate (%) 41 | 6 96 43 70 30 46 94 11 38 91 58 50 11 86 6 95 3 60 10 35 3 89 2 4 31 13 Regions Visited 25 Branch Regions 6 Pre-discovered Areas 11 | . 4 . 1 . . . . . . 5 1 . . . . . . . . . . . . . . Known Exits Taken 12 | . . 1 . . 1 . 1 1 . 1 1 1 . 1 . 1 . 1 . 1 . . 1 . . Unknown Exits Taken 5 | 1 1 . 1 1 . . . . . . . . . . . . . . . . . 1 . . . Scrap Searched 6 | . . 2 . 1 . . . . . . 3 . . . . . . . . . . . . . . Spaces Dug 48 | . 1 2 . . 3 1 . . . . . . . 4 4 . 2 3 10 . . . . 16 2 Terrain Destroyed 344 | . 1 2 . . 68 92 . . 10 . . 2 1 30 15 3 12 12 25 . 13 . . 18 40 Melee 13 | . . 2 . . 3 1 . . . . . . . . . . . . . . . . . 5 2 Projectile 138 | . 1 . . . . . . . . . . . 1 30 15 3 12 12 25 . 10 . . 13 16 AOE 193 | . . . . . 65 91 . . 10 . . 2 . . . . . . . . 3 . . . 22 Terrain Rammed . | . . . . . . . . . . . . . . . . . . . . . . . . . . Walls Destroyed . | . . . . . . . . . . . . . . . . . . . . . . . . . . Machines Disabled . | . . . . . . . . . . . . . . . . . . . . . . . . . . Actions | -11 -10 -10 -10 -9 -8 -8 -8 -8 -8 -8 -8 -6 -6 -5 -5 -5 -5 -4 -4 -3 -3 -2 -1 -1 -1 --------- Run | Yrd Mat Min Exi Min Mat Gar Mat Sto Gar Rec Scr Fac Gar Fac Gar Fac Gar Fac Gar Res Gar Res Acc Gar Acc Total 15430 | 75 1394 178 307 89 867 1073 195 330 1203 439 656 522 1399 251 1825 86 845 317 467 81 1288 49 121 686 687 Wait 600 | . 94 18 . . 63 24 43 18 17 57 . 13 1 11 131 . 19 13 11 . 45 7 . 5 10 Move 12318 | 53 1138 153 298 87 596 901 135 252 1028 372 654 383 1056 192 1413 72 673 243 396 75 969 38 112 530 499 Hop . | . . . . . . . . . . . . . . . . . . . . . . . . . . Pick Up 232 | 4 24 . 3 1 18 12 2 5 11 2 1 17 27 3 29 . 14 2 8 2 29 . . 12 6 Fast Attach 178 | 7 . . . . 12 4 . 3 9 . . 2 25 1 23 2 7 6 . . 37 1 2 19 18 Attach 99 | . 1 . 1 . 6 2 2 1 2 . 1 6 21 4 6 . 6 2 2 2 11 . 2 11 10 Detach 66 | . . . . . 4 3 . 1 5 1 . 1 18 3 3 . 5 1 . . 10 1 2 6 2 Swap 267 | . 25 4 1 . 24 27 4 12 26 2 . 24 22 4 9 . 9 5 8 . 33 1 1 9 17 Drop 273 | . 16 1 4 . 21 15 . 7 15 2 . 10 50 1 37 2 18 6 7 . 37 1 2 12 9 Fire 1102 | 11 96 . . . 119 67 9 31 80 3 . 66 118 32 117 10 92 38 35 2 57 . . 32 87 Melee 110 | . . 2 . . 3 16 . . 7 . . . 2 . . . . . . . 46 . . 30 4 Ram . | . . . . . . . . . . . . . . . . . . . . . . . . . . Kick 1 | . . . . . . . . . . . . . . . . . . . . . . . . . 1 Crush 10 | . . . . 1 1 2 . . 2 . . . . . . . 2 1 . . . . . 1 . Escape Stasis 43 | . . . . . . . . . . . . . 14 . 4 . . . . . 10 . . 15 . Rewire 103 | . . . . . . . . . 1 . . . 45 . 53 . . . . . 1 . . 1 2 Trap . | . . . . . . . . . . . . . . . . . . . . . . . . . . Miscellaneous 28 | . . . . . . . . . . . . . . . . . . . . . 3 . . 3 22 Route ------- -11/Scrapyard -10/Materials (discovered 4 exits: *Mat x3 / [*Min]) -10/Mines (discovered 3 exits: *Mat x2 / *Exi) -10/Exiles (discovered 2 exits: [*Min x2]) -9/Mines -8/Materials (discovered 2 exits: *Sto / Gar) -8/Garrison (discovered 3 exits: *Mat x3) -8/Materials -8/Storage (discovered 3 exits: Fac / Rec / Gar) -8/Garrison (discovered 3 exits: *Rec x3) -8/Recycling (discovered 2 exits: *Fac / *Scr) -8/Scraptown -6/Factory (discovered 3 exits: *Fac / [Low] / Gar) -6/Garrison (discovered 3 exits: *Fac x3) -5/Factory -5/Garrison (discovered 3 exits: *Fac x3) -5/Factory -5/Garrison (discovered 3 exits: *Fac x3) -4/Factory -4/Garrison -3/Research -3/Garrison (discovered 3 exits: [*Res x3]) -2/Research -1/Access -1/Garrison -1/Access To Epsilon Eridani History --------- Turn | Location | Event 20 | -11/Scrapyard | Discovered new exit (range 15) 132 | -11/Scrapyard | Entered Materials 317 | -10/Materials | Build established: Mutant 485 | -10/Materials | Discovered new exit (range 16) 745 | -10/Materials | Learned location of 1 exit from Storage 850 | -10/Materials | Discovered new exit (range 7) 867 | -10/Materials | Learned 2 Storage zone layouts 914 | -10/Materials | Learned location of Mines (-10) 950 | -10/Materials | Learned location of 1 exit from Storage 1014 | -10/Materials | Learned location of Subcaves (-10) 1062 | -10/Materials | Learned location of 2 exits from Mines 1121 | -10/Materials | Identified exit to Materials 2126 | -10/Materials | Build established: Scavenger-Mutant 2497 | -10/Materials | Build established: Mutant 2659 | -10/Materials | Discovered exit to Materials (range 9) 2739 | -10/Materials | Repaired Lgt. Treads 2766 | -10/Materials | Repaired Lgt. Treads 2794 | -10/Materials | Repaired Lgt. Treads 3014 | -10/Materials | Entered Mines 3015 | -10/Mines | Identified exit to Exiles 3347 | -10/Mines | Discovered exit to Materials (range 12) 3402 | -10/Mines | Deemed a non-threat by the Exiles lab entrance 3412 | -10/Mines | Entered Exiles 3451 | -10/Exiles | Discovered new exit (range 15) 3477 | -10/Exiles | Met 8R-AWN 3513 | -10/Exiles | Met EX-HEX 3578 | -10/Exiles | Met EX-BIN 3604 | -10/Exiles | Aligned with FarCom system 3607 | -10/Exiles | Given EX-Vault access code 3662 | -10/Exiles | Opened EX-Vault 3678 | -10/Exiles | Found YOLO Cannon 3730 | -10/Exiles | Warned to stay clear of 0b10 Research branches 3797 | -10/Exiles | Met EX-DEC 3809 | -10/Exiles | Learned location of Zion (-7) 4172 | -10/Exiles | Discovered new exit (range 12) 4204 | -10/Exiles | Left Exiles lab with YOLO Cannon 4204 | -10/Exiles | Entered Mines 4297 | -9/Mines | Learned Materials security intel 4455 | -9/Mines | Discovered new exit (range 7) 4487 | -9/Mines | Entered Materials 4487 | -8/Materials | Evolved 4 slots: Propulsion x4 4539 | -8/Materials | Repaired Lgt. Treads 5239 | -8/Materials | Build established: Scavenger-Mutant 5706 | -8/Materials | Destroyed 8 combat bots 5811 | -8/Materials | Lost 3 parts (2n1u) 6114 | -8/Materials | Discovered new exit (range 12) 6237 | -8/Materials | Identified exit to Garrison 6237 | -8/Materials | Entered Garrison 6263 | -8/Garrison | Installed Relay Interface Framework 6325 | -8/Garrison | Triggered checkpoint 6381 | -8/Garrison | Garrison Relay disabled 6554 | -8/Garrison | Build established: Mutant 6749 | -8/Garrison | Triggered checkpoint 6758 | -8/Garrison | Triggered checkpoint 6760 | -8/Garrison | Triggered checkpoint 6800 | -8/Garrison | Lost 4 allies 6809 | -8/Garrison | Triggered checkpoint 7062 | -8/Garrison | Triggered checkpoint 7079 | -8/Garrison | Garrison Relay disabled 7116 | -8/Garrison | Garrison Relay disabled 7167 | -8/Garrison | Discovered new exit (range 5) 7178 | -8/Garrison | Identified exit to Materials 7185 | -8/Garrison | Phase Generator disabled 7288 | -8/Garrison | Spotted B-75 Beast 7311 | -8/Garrison | Destroyed B-75 Beast 7363 | -8/Garrison | Garrison Relay disabled 7388 | -8/Garrison | Rescued a captive Derelict 7391 | -8/Garrison | Rescued a captive Derelict 7575 | -8/Garrison | Discovered exit to Materials (range 10) 7593 | -8/Garrison | Build established: Scavenger-Mutant 7648 | -8/Garrison | Garrison Relay disabled 7805 | -8/Garrison | Triggered checkpoint 7849 | -8/Garrison | Garrison Relay disabled 7920 | -8/Garrison | Discovered exit to Materials (range 13) 7956 | -8/Garrison | Build established: Bothacker-Mutant 7960 | -8/Garrison | Entered Materials 7960 | -8/Materials | Accompanied by 1 ally 8076 | -8/Materials | Discovered new exit (range 14) 8167 | -8/Materials | Repaired Imp. Treads? 8212 | -8/Materials | Repaired Lgt. Treads 8242 | -8/Materials | Identified exit to Storage 8249 | -8/Materials | Entered Storage 8249 | -8/Storage | Accompanied by 1 ally 8250 | -8/Storage | Identified exit to Recycling 8251 | -8/Storage | Identified exit to Factory 8508 | -8/Storage | Repaired Imp. Medium Treads 8535 | -8/Storage | Repaired Lgt. Treads 8623 | -8/Storage | Garrison activated, responded to threat 8640 | -8/Storage | Build established: Scavenger-Mutant 8691 | -8/Storage | Lost 4 allies 8743 | -8/Storage | Identified exit to Garrison 8743 | -8/Storage | Entered Garrison 8797 | -8/Garrison | Triggered checkpoint 8800 | -8/Garrison | Core integrity fell below 50% 8864 | -8/Garrison | Garrison Relay disabled 8953 | -8/Garrison | Triggered checkpoint 9019 | -8/Garrison | Discovered exit to Recycling (range 10) 9053 | -8/Garrison | Triggered checkpoint 9104 | -8/Garrison | Garrison Relay disabled 9107 | -8/Garrison | Triggered checkpoint 9138 | -8/Garrison | Rescued a captive Derelict 9255 | -8/Garrison | Triggered checkpoint 9269 | -8/Garrison | Triggered checkpoint 9303 | -8/Garrison | Garrison Relay disabled 9322 | -8/Garrison | Lost 5 allies 9411 | -8/Garrison | Triggered checkpoint 9562 | -8/Garrison | Garrison Relay disabled 9580 | -8/Garrison | Triggered checkpoint 9606 | -8/Garrison | Expanded RIF knowledge: Hotswap 9631 | -8/Garrison | Discovered exit to Recycling (range 3) 10179 | -8/Garrison | Discovered exit to Recycling (range 11) 10417 | -8/Garrison | Garrison Relay disabled 10503 | -8/Garrison | Triggered checkpoint 10519 | -8/Garrison | Garrison Relay disabled 10557 | -8/Garrison | Discovered exit to Recycling (range 23) 10557 | -8/Garrison | Discovered exit to Recycling (range 30) 10557 | -8/Garrison | Discovered exit to Recycling (range 73) 10621 | -8/Garrison | Entered Recycling 10707 | -8/Recycling | Build established: Bothacker-Mutant 10948 | -8/Recycling | Identified exit to Scraptown 10992 | -8/Recycling | Identified exit to Factory 11026 | -8/Recycling | Learned location of Extension (-6) 11083 | -8/Recycling | Learned 4 Lower Caves zone layouts 11116 | -8/Recycling | Learned Storage trap positions 11170 | -8/Recycling | Scanned before Scraplab entrance 11195 | -8/Recycling | Entered Scraplab 11264 | -8/Recycling | Entered Scraptown 11264 | -8/Scraptown | Accompanied by 1 ally 11264 | -8/Scraptown | System corruption cleaned by C-Scrubber 11581 | -8/Scraptown | Visited TADAMA 11663 | -8/Scraptown | Visited Shadow of the Wyrm 11683 | -8/Scraptown | Visited CR-KLE's Repair Center 11695 | -8/Scraptown | CR-KLE repaired 9 parts 11789 | -8/Scraptown | Visited Awakened 11851 | -8/Scraptown | Visited Symbiants 11905 | -8/Scraptown | Turned away by UFD registrar 11905 | -8/Scraptown | Turned away by UFD registrar 11917 | -8/Scraptown | Visited Artisan Demo Area 11955 | -8/Scraptown | Visited Cave Peace 12077 | -8/Scraptown | Discovered exit to Factory (range 5) 12280 | -8/Scraptown | Entered Factory 12280 | -6/Factory | Accompanied by 1 ally 12280 | -6/Factory | Evolved 4 slots: Utility x3, Weapon x1 12390 | -6/Factory | Discovered new exit (range 111) 12571 | -6/Factory | Build established: Bothacker-Skirmisher 13053 | -6/Factory | Build established: Hauler-Skirmisher 13308 | -6/Factory | Discovered new exit (range 13) 13410 | -6/Factory | Identified exit to Garrison 13410 | -6/Factory | Entered Garrison 13570 | -6/Garrison | Triggered checkpoint 13599 | -6/Garrison | Garrison Relay disabled 13932 | -6/Garrison | Triggered checkpoint 14072 | -6/Garrison | Discovered new exit (range 8) 14190 | -6/Garrison | Triggered checkpoint 14252 | -6/Garrison | Build established: Hauler-Tank 14626 | -6/Garrison | Discovered new exit (range 12) 14722 | -6/Garrison | Triggered checkpoint 14871 | -6/Garrison | Discovered new exit (range 18) 14871 | -6/Garrison | Discovered new exit (range 81) 14871 | -6/Garrison | Discovered new exit (range 78) 14898 | -6/Garrison | Garrison Relay disabled 15034 | -6/Garrison | Triggered checkpoint 15074 | -6/Garrison | Triggered checkpoint 15252 | -6/Garrison | Spotted B-86 Titan 15271 | -6/Garrison | Spotted B-90 Cyclops 15276 | -6/Garrison | Hijacked Titan 5a control node with streamctrl_high 15312 | -6/Garrison | Destroyed Titan 5a 15348 | -6/Garrison | Destroyed B-90 Cyclops 15377 | -6/Garrison | Lost 10 parts (5n2u3w) 15607 | -6/Garrison | Build established: Scavenger-Skirmisher 16050 | -6/Garrison | Destroyed B-75 Beast 16178 | -6/Garrison | Entered Factory 16178 | -5/Factory | Evolved 2 slots: Power x1, Weapon x1 16247 | -5/Factory | Fabricated Humpback (x1) 16587 | -5/Factory | Build established: Hauler-Skirmisher 16615 | -5/Factory | Garrison activated, responded to threat 16720 | -5/Factory | Identified exit to Garrison 16720 | -5/Factory | Entered Garrison 16782 | -5/Garrison | Triggered checkpoint 16901 | -5/Garrison | Garrison Relay disabled 17044 | -5/Garrison | Spotted B-90 Cyclops 17062 | -5/Garrison | Destroyed B-90 Cyclops 17132 | -5/Garrison | Found Quantum Capacitor 17400 | -5/Garrison | Triggered checkpoint 17400 | -5/Garrison | Spotted B-75 Beast 17428 | -5/Garrison | Destroyed B-75 Beast 17554 | -5/Garrison | Triggered checkpoint 17809 | -5/Garrison | Found Relay Coupler [Proto] 17811 | -5/Garrison | Found Relay Coupler [Proto] 17872 | -5/Garrison | Discovered new exit (range 11) 17932 | -5/Garrison | Triggered checkpoint 17978 | -5/Garrison | Garrison Relay disabled 18111 | -5/Garrison | Build established: Bothacker-Skirmisher 18342 | -5/Garrison | Triggered checkpoint 18386 | -5/Garrison | Triggered checkpoint 18388 | -5/Garrison | Lost 4 allies 18433 | -5/Garrison | Garrison Relay disabled 18450 | -5/Garrison | Triggered checkpoint 18470 | -5/Garrison | Discovered new exit (range 14) 18673 | -5/Garrison | Discovered new exit (range 14) 18722 | -5/Garrison | Triggered checkpoint 18750 | -5/Garrison | Expanded RIF knowledge: Command Fork 18780 | -5/Garrison | Garrison Relay disabled 18856 | -5/Garrison | Triggered checkpoint 18935 | -5/Garrison | Core integrity fell below 50% 18965 | -5/Garrison | Lost 8 parts (1p3n1u3w) 19223 | -5/Garrison | Destroyed B-90 Cyclops 19247 | -5/Garrison | Rewired B-75 Beast 19447 | -5/Garrison | Found Relay Coupler [Proto] 19450 | -5/Garrison | Found Relay Coupler [Proto] 19699 | -5/Garrison | Destroyed Beast 6a 19868 | -5/Garrison | Triggered checkpoint 19955 | -5/Garrison | Entered Factory 19955 | -5/Factory | Accompanied by 3 allies 20019 | -5/Factory | Garrison activated, responded to threat 20093 | -5/Factory | Identified exit to Garrison 20093 | -5/Factory | Entered Garrison 20098 | -5/Garrison | Lost 3 allies 20127 | -5/Garrison | Triggered checkpoint 20182 | -5/Garrison | Garrison Relay disabled 20237 | -5/Garrison | Triggered checkpoint 20245 | -5/Garrison | Triggered checkpoint 20245 | -5/Garrison | Triggered checkpoint 20288 | -5/Garrison | Lost 7 allies 20435 | -5/Garrison | Discovered new exit (range 10) 20695 | -5/Garrison | Triggered checkpoint 20714 | -5/Garrison | Garrison Relay disabled 20921 | -5/Garrison | Triggered checkpoint 20940 | -5/Garrison | Garrison Relay disabled 20978 | -5/Garrison | Expanded RIF knowledge: Program Shield 21038 | -5/Garrison | Discovered new exit (range 11) 21049 | -5/Garrison | Discovered new exit (range 71) 21049 | -5/Garrison | Discovered new exit (range 7) 21049 | -5/Garrison | Discovered new exit (range 80) 21207 | -5/Garrison | Found Relay Coupler [Proto] 21214 | -5/Garrison | Found Relay Coupler [Proto] 21217 | -5/Garrison | Found Relay Coupler [Proto] 21266 | -5/Garrison | Build established: Botlord-Skirmisher 21361 | -5/Garrison | Entered Factory 21361 | -4/Factory | Evolved 2 slots: Utility x2 21611 | -4/Factory | First assault squad dispatched 21849 | -4/Factory | Lost 4 allies 21951 | -4/Factory | Identified exit to Garrison 21958 | -4/Factory | Entered Garrison 22096 | -4/Garrison | Triggered checkpoint 22114 | -4/Garrison | Garrison Relay disabled 22157 | -4/Garrison | Expanded RIF knowledge: Zone Cloak 22436 | -4/Garrison | Discovered new exit (range 10) 22500 | -4/Garrison | Triggered checkpoint 22668 | -4/Garrison | Entered Research 22668 | -3/Research | Accompanied by 2 allies 22668 | -3/Research | Evolved 2 slots: Utility x2 22787 | -3/Research | Identified exit to Garrison 22787 | -3/Research | Entered Garrison 22787 | -3/Garrison | Accompanied by 3 allies 22796 | -3/Garrison | Spotted B-75 Beast 22801 | -3/Garrison | Destroyed B-75 Beast 22873 | -3/Garrison | Triggered checkpoint 22879 | -3/Garrison | Expanded RIF knowledge: Autoassimilate 22942 | -3/Garrison | Q-Series assembled to engage unique threat in Research 22985 | -3/Garrison | Spotted B-86 Titan 22995 | -3/Garrison | Triggered checkpoint 23042 | -3/Garrison | Destroyed B-86 Titan 23045 | -3/Garrison | Lost 9 allies 23193 | -3/Garrison | Lost 4 allies 23250 | -3/Garrison | Lost 10 parts (1p4n2u3w) 23461 | -3/Garrison | Build established: Botlord-Mutant 23597 | -3/Garrison | Lost 7 parts (1p4n2u) 23676 | -3/Garrison | Garrison Relay disabled 23723 | -3/Garrison | Triggered checkpoint 23839 | -3/Garrison | Build established: Botlord-Gladiator 24022 | -3/Garrison | Discovered new exit (range 9) 24081 | -3/Garrison | QS Assembler disabled 24128 | -3/Garrison | Found Prototype Processor 24128 | -3/Garrison | Identified Exp. Targeting Computer 24160 | -3/Garrison | Found Prototype Processor 24196 | -3/Garrison | Build established: Botlord-Skirmisher 24295 | -3/Garrison | Triggered checkpoint 24377 | -3/Garrison | Discovered new exit (range 5) 24538 | -3/Garrison | Garrison Relay disabled 24542 | -3/Garrison | Identified Spectral Analyzer 24565 | -3/Garrison | Triggered checkpoint 24781 | -3/Garrison | Triggered checkpoint 24804 | -3/Garrison | Garrison Relay disabled 24872 | -3/Garrison | Discovered new exit (range 15) 24909 | -3/Garrison | Entered Research 24909 | -2/Research | Accompanied by 5 allies 24909 | -2/Research | Evolved 2 slots: Weapon x2 24955 | -2/Research | Discovered new exit (range 9) 24981 | -2/Research | Entered Access 24981 | -1/Access | Accompanied by 5 allies 24981 | -1/Access | Evolved 2 slots: Propulsion x2 25169 | -1/Access | Identified exit to Garrison 25169 | -1/Access | Entered Garrison 25169 | -1/Garrison | Accompanied by 5 allies 25193 | -1/Garrison | Found embedded Infiltrators 25207 | -1/Garrison | Build established: Botlord-Executioner 25236 | -1/Garrison | Garrison Relay disabled 25250 | -1/Garrison | Triggered checkpoint 25288 | -1/Garrison | Lost 7 allies 25360 | -1/Garrison | Lost 5 parts (1p1n1u2w) 25624 | -1/Garrison | Build established: Botlord-Skirmisher 25786 | -1/Garrison | System corruption reached 10% 25828 | -1/Garrison | Lost 7 parts (1p1n1u4w) 26181 | -1/Garrison | Crushed by falling debris 26223 | -1/Garrison | Discovered new exit (range 15) 26256 | -1/Garrison | Expanded RIF knowledge: Structural Interface 26315 | -1/Garrison | Triggered checkpoint 26338 | -1/Garrison | Garrison Relay disabled 26433 | -1/Garrison | Rescued a captive Derelict 26483 | -1/Garrison | Build established: Botlord-Mutant 26520 | -1/Garrison | Entered Access 26520 | -1/Access | Accompanied by 2 allies 26586 | -1/Access | Garrison activated, responded to threat 26660 | -1/Access | Lost 5 allies 26785 | -1/Access | Garrison activated, responded to threat 26844 | -1/Access | Lost 5 allies 26855 | -1/Access | System corruption reached 30% 27010 | -1/Access | Lost 3 allies 27020 | -1/Access | First assault squad dispatched 27274 | -1/Access | Destroyed 7 combat bots 27274 | -1/Access | Lost 9 parts (1p2n5u1w) 27351 | -1/Access | Lost 4 parts (1n1u2w) 27609 | -1/Access | Discovered new exit (range 4) 27613 | *** | Escaped! Last Messages --------------- 27582_ C-30 ARC bursts open, deploying its payload. 27582_ P-80 Master unfolds itself. 27584_ Dismantling Sealed Barrier with Imp. Plasma Cutter. 27592_ P-80 Master resets P-80 Master, system corruption cleaned. 27594_ Dismantling Sealed Barrier with Imp. Plasma Cutter. 27594_ Sealed Barrier dismantled. 27599_ Dismantling Main Access Shell with Imp. Plasma Cutter. 27605_ System corrupted: Energy discharge (-243). 27605_ Dismantling Main Access Shell with Imp. Plasma Cutter. 27609_ Main Access Shell dismantled. 27609_ EXIT=FOUND 27610_ Biometal Leg destroyed. [Achievement: One Last FU] Map ----- +----------------------------------------------------+ | ?????????????????????????????????????????????????? | | ?????????????????????????????????????????????????? | | ?????????????????????????????????????????????????? | | ?????????????????????????????????????????????????? | | ?????????????????????????????????????????????????? | | ?????????????????????????????????????????????????? | | ?????????????????????????????????????????????????? | | ?????????????????????????????????????????????????? | | ?????????????????????????????????????????????????# | | ????????????????????????????????????????????????## | | ????????????????????????????????????????????????? | | ????????????????????????????????????????????????? | | ????????????????????????????????????????????????? | | ??????????# ????????????????????????????????????? | | ??????????# ???????????????????????????????????? | | ??????????# ???????????????????????????????????? | | ??????????# ????????????????????????????????????? | | ??????????# ????????????????????????????????????? | | ??????????# ????????????????????????????????????? | | ??????????# "#######"#######?????????????????????? | | ??????????#"%"""T"""" ??????????????????? ??? | | ??????????# """ """" ??????????BB????????? ??? | | ??????????# p " """"""??????BB?? #####/#?? | | ??????????# p "??????????? ?? | | ??????????# "" "??????????? ?? | | ??????????# @" "???????????? | | ??????????# " " "???????????? """ | | ??????????# " """"""??????BB????# ""T | | ??????????# " ??????????BB????# | | ??????????# " ???????????????# | | ??????????# #######"######??????????????# | | ??????????# #???????????????????????????# ? | | ??????????# #??????###########??????????# ?? | | ??????????# #??????# #???????????? ??? | | ??????????# #??????# #????????######/#### | | ??????????+ #??????# """"" #????????# | | ??????????# ######## """"" #????????# | | ??????????+ # """"" #????????# " | | ??????????# + """"" #????????# """ | | ??????????# ###### # """"" ######???# """ | | ??????????# ?????# # """"" # #???# " | | ??????????# ?????# # # ##### | | ??????????# ?????# # # + | | ??????????# ?????# # # ##### ""Y"" | | ??????????# ?????# # # ###??# """"" | | ??????????# ?????# # # ##?# | | ??????????#+?????# # # #?# | | ?????????????????# ########## # ## ##+######## | | ?????????????????# #????????# # | | ?????????????????+ #? # | +----------------------------------------------------+ Best States ------------- Heat Dissipation 128 Coolant Potential 100 Energy Generation 45 Energy Capacity 940 Matter Stores 300 Matter Capacity 550 Sight Range 16 Terrain Scan Density 10 Base Temperature (-) 200 Armor Coverage 600 Resistance: KI 20 Resistance: EM 20 Core Shielding 30 Melee Speed Boost 20 Phase Shifting 15 Evasion (%) 70 Targeting Accuracy 8 Melee Accuracy 8 Core Analysis 6 Recoil Reduction 6 Offensive Hacking 14 Defensive Hacking 12 Relay Coupler Types 5 Relay Coupler Value 131 Item Schematics ----------------- Remote Datajack | -8/Materials | Scanalyzed Lyr. Medium Armor Plating | -8/Materials | Scanalyzed Magnetic Acceleration Cannon | -8/Materials | Scanalyzed Humpback | -8/Materials | Scanalyzed Hrd. Medium Armor Plating | -8/Materials | Scanalyzed Rocket Launcher | -8/Materials | Scanalyzed Robot Schematics ------------------ R-06 Scavenger | -8/Storage | Hacked Fabricated ------------ Humpback | x1 | -5/Factory Alien Tech Used ----------------- None Achievements -------------- One Last FU Challenges ------------ None Game ------ Seed CouplerSurgeThrower Manual? 0 Play Time 04:29:21 Cumulative 186.3 hours Start 2024.12.16 @ 01:20:06 End 2024.12.16 @ 05:51:51 Sessions 1 Manual Loads 0 Difficulty Rogue Special Mode None Game No. 193 Rogue 193 Adventurer 0 Explorer 0 Win Type 0 Total 4 Types 4/0/0/0/0/0/0/0/0 Lore% 65 Gallery% 60 Achievement% 57 Wizard Run 0 Options --------- Layout 1 ASCII 0 Keyboard 1 Movement Arrows Keybinds 0 Fullscreen 0 Font 20/Smallcaps Map View 50x35 Zoom Use 0% Tactical HUD 1 Map Filters NONE Filters NONE Steam 1 RUN: 649dfd8c-5f80-437c-8055-1ae7b3925372